[Event "44th Chess Olympiad Women 2022"]
[Site "Chennai"]
[Date "2022.08.02"]
[Round "5.14"]
[White "Campos, Maria Jose"]
[Black "Blagojevic, Tijana"]
[Result "1-0"]
[ECO "A20"]
[WhiteElo "2185"]
[BlackElo "2330"]
[Annotator "RC"]
[PlyCount "129"]
[EventDate "2022.07.29"]
[EventType "team-tourn"]
[EventCountry "IND"]
[SourceTitle "playchess.com"]
[Source "ChessBase"]
[SourceQuality "1"]
[WhiteTeam "Argentina"]
[BlackTeam "Serbia"]
[WhiteTeamCountry "ARG"]
[BlackTeamCountry "SRB"]
[TimeControl "40/5400+30:1800+30"]

1. c4 {[%emt 0:00:22]} e5 {[%emt 0:00:09]} 2. g3 {[%emt 0:00:36]} c6 {[%emt 0:00:14]} 3. d4 {[%emt 0:00:44]} e4 {[%emt 0:00:08]} 4. Nc3 {[%emt 0:01:04]} Bb4 {[%emt 0:00:17]} 5. Bg2 {[%emt 0:01:16]} Nf6 {[%emt 0:04:16]} 6. Nh3 {[%emt 0:04:12]} O-O {[%emt 0:02:21]} 7. O-O {[%emt 0:00:51]} Bxc3 {[%emt 0:05:26]} 8. bxc3 {[%emt 0:00:07]} d6 {[%emt 0:00:36]} 9. f3 {[%emt 0:08:49]} exf3 {[%emt 0:01:22]} 10. exf3 {[%emt 0:01:10]} Be6 {[%emt 0:06:27]} 11. Qd3 {[%emt 0:00:34]} Qa5 {[%emt 0:01:31]} 12. Ng5 {[%emt 0:02:44]} Bf5 {[%emt 0:04:18]} 13. Ne4 {[%emt 0:01:57]} Kh8 {[%emt 0:01:55]} 14. Qd2 {[%emt 0:04:25]} Nxe4 {[%emt 0:04:54]} 15. fxe4 {[%emt 0:00:11]} Bg6 {[%emt 0:00:34]} 16. a4 {[%emt 0:02:43]} Nd7 {[%emt 0:01:56]} 17. Ba3 {[%emt 0:13:28]} Nb6 {[%emt 0:00:23]} 18. Bb4 {[%emt 0:01:15]} Nxc4 {[%emt 0:02:20]} 19. Qe2 {[%emt 0:02:04]} Qa6 {[%emt 0:00:56]} 20. h4 {[%emt 0:01:04]} h6 {[%emt 0:02:58]} 21. h5 {[%emt 0:03:14]} Bh7 {[%emt 0:00:05]} 22. Rf4 {[%emt 0:00:26]} f6 {[%emt 0:06:03]} 23. Bf1 {[%emt 0:04:17]} Bg8 {[%emt 0:00:27]} 24. Qf2 {[%emt 0:04:24]} c5 {[%emt 0:15:34]} 25. dxc5 {[%emt 0:02:43]} Qc6 {[%emt 0:03:26]} 26. Bxc4 {[%emt 0:07:13]} Bxc4 {[%emt 0:00:04]} 27. cxd6 {[%emt 0:01:20]} Kg8 {[%emt 0:04:50]} 28. e5 {[%emt 0:08:10]} a5 {[%emt 0:01:16]} 29. Ba3 {[%emt 0:01:31]} b5 {[%emt 0:18:21]} 30. axb5 {[%emt 0:03:48]} Bxb5 {[%emt 0:03:08]} 31. exf6 {[%emt 0:03:52]} Rf7 {[%emt 0:03:24]} 32. c4 {[%emt 0:07:41]} Ba6 {[%emt 0:00:04]} 33. Qc5 {[%emt 0:00:47]} Qd7 {[%emt 0:01:35]} 34. Qf5 {[%emt 0:02:14]} Qxf5 {[%emt 0:00:47]} 35. Rxf5 {[%emt 0:00:06]} Bxc4 {[%emt 0:00:07]} 36. Rc5 {[%emt 0:00:39]} Bb3 {[%emt 0:03:05]} 37. fxg7 {[%emt 0:01:03]} Rxg7 {[%emt 0:00:08]} 38. Rc3 {[%emt 0:00:32]} a4 {[%emt 0:00:33]} 39. Bc1 {[%emt 0:03:50]} Rd8 {[%emt 0:02:06]} 40. Bf4 {[%emt 0:00:37]} Kh7 {[%emt 0:01:00]} 41. Kf2 {[%emt 0:31:06]} Rf7 {[%emt 0:30:40]} 42. Rc7 {[%emt 0:00:35]} Kg7 {[%emt 0:00:53]} 43. Ke3 {[%emt 0:00:00]} Ra8 {[%emt 0:00:00]} 44. Be5+ {[%emt 0:00:00]} Kf8 {[%emt 0:00:00]} 45. Kd4 {[%emt 0:00:00]} Ke8 {[%emt 0:00:00]} 46. Bf4 {[%emt 0:00:00]} Ra5 {[%emt 0:00:00]} 47. Rc5 {[%emt 0:00:00]} Rxc5 {[%emt 0:00:00]} 48. Kxc5 {[%emt 0:00:00]} Kd7 {[%emt 0:00:00]} 49. Re1 {[%emt 0:00:00]} Rf5+ {[%emt 0:00:00]} 50. Kb4 {[%emt 0:00:00]} Rxh5 {[%emt 0:00:00]} 51. Re7+ {[%emt 0:00:00]} Kd8 {[%emt 0:00:00]} 52. Rh7 {[%emt 0:02:00]} Rd5 {[%emt 0:00:00]} 53. Rxh6 {[%emt 0:00:14]} Rd4+ {[%emt 0:00:00]} 54. Ka3 {[%emt 0:00:56]} Rd3 {[%emt 0:00:00]} 55. Kb4 {[%emt 0:00:27]} Rd4+ {[%emt 0:00:00]} 56. Kc3 {[%emt 0:00:15]} Rc4+ {[%emt 0:00:00]} 57. Kb2 {[%emt 0:00:09]} Kd7 {[%emt 0:00:00]} 58. Rh7+ {[%emt 0:00:27]} Ke6 {[%emt 0:00:27]} 59. Re7+ {[%emt 0:00:49]} Kf6 {[%emt 0:00:41]} 60. Be5+ {[%emt 0:01:22]} Kf5 {[%emt 0:00:04]} 61. d7 {[%emt 0:00:42]} Rc2+ {[%emt 0:00:35]} 62. Ka3 {[%emt 0:00:12]} Ra2+ {[%emt 0:00:18]} 63. Kb4 {[%emt 0:00:18]} Rd2 {[%emt 0:00:04]} 64. Bc7 {[%emt 0:00:39]} a3 {[%emt 0:01:25]} 65. Kxa3 {[%emt 0:00:28]} 1-0

[Event "44th Chess Olympiad Women 2022"]
[Site "Chennai"]
[Date "2022.08.02"]
[Round "5.14"]
[White "Sarquis, Maria Belen"]
[Black "Velikic, Adela"]
[Result "0-1"]
[ECO "B10"]
[WhiteElo "2072"]
[BlackElo "2273"]
[Annotator "RC"]
[PlyCount "140"]
[EventDate "2022.07.29"]
[EventType "team-tourn"]
[EventCountry "IND"]
[SourceTitle "playchess.com"]
[Source "ChessBase"]
[SourceQuality "1"]
[WhiteTeam "Argentina"]
[BlackTeam "Serbia"]
[WhiteTeamCountry "ARG"]
[BlackTeamCountry "SRB"]
[TimeControl "40/5400+30:1800+30"]

1. e4 {[%emt 0:00:03]} c6 {[%emt 0:00:04]} 2. Nf3 {[%emt 0:00:12]} d5 {[%emt 0:00:06]} 3. exd5 {[%emt 0:00:08]} cxd5 {[%emt 0:00:06]} 4. Ne5 {[%emt 0:00:18]} Nc6 {[%emt 0:04:11]} 5. Bb5 {[%emt 0:00:05]} Bd7 {[%emt 0:00:27]} 6. Nxd7 {[%emt 0:00:11]} Qxd7 {[%emt 0:00:05]} 7. d4 {[%emt 0:00:07]} a6 {[%emt 0:06:14]} 8. Bd3 {[%emt 0:03:40]} Nxd4 {[%emt 0:26:20]} 9. Bxh7 {[%emt 0:05:00]} Rxh7 {[%emt 0:06:52]} 10. Qxd4 {[%emt 0:00:06]} g6 {[%emt 0:03:07]} 11. Nc3 {[%emt 0:02:37]} Bg7 {[%emt 0:02:32]} 12. Qd3 {[%emt 0:00:56]} Qe6+ {[%emt 0:07:36]} 13. Ne2 {[%emt 0:05:48]} Nf6 {[%emt 0:02:36]} 14. h3 {[%emt 0:07:48]} Qe4 {[%emt 0:03:23]} 15. Qxe4 {[%emt 0:06:03]} Nxe4 {[%emt 0:00:11]} 16. c3 {[%emt 0:00:17]} Rc8 {[%emt 0:08:03]} 17. Be3 {[%emt 0:02:02]} Nd6 {[%emt 0:03:39]} 18. Rd1 {[%emt 0:17:00]} e6 {[%emt 0:05:45]} 19. O-O {[%emt 0:02:05]} Nc4 {[%emt 0:02:45]} 20. Bc1 {[%emt 0:00:06]} b5 {[%emt 0:01:55]} 21. a3 {[%emt 0:02:16]} Bh6 {[%emt 0:01:41]} 22. f4 {[%emt 0:01:39]} Bf8 {[%emt 0:00:45]} 23. Nd4 {[%emt 0:03:45]} Bc5 {[%emt 0:01:31]} 24. Kh2 {[%emt 0:00:53]} Bxd4 {[%emt 0:04:30]} 25. Rxd4 {[%emt 0:00:43]} Kd7 {[%emt 0:01:20]} 26. g4 {[%emt 0:01:34]} Nd6 {[%emt 0:01:28]} 27. Kg2 {[%emt 0:03:22]} Rc4 {[%emt 0:02:23]} 28. Rfd1 {[%emt 0:01:07]} Rh8 {[%emt 0:00:44]} 29. Be3 {[%emt 0:01:50]} Rhc8 {[%emt 0:00:54]} 30. Rh1 {[%emt 0:03:36]} Rh8 {[%emt 0:02:44]} 31. Kf3 {[%emt 0:01:20]} Rcc8 {[%emt 0:00:43]} 32. Rdd1 {[%emt 0:01:11]} Nc4 {[%emt 0:00:45]} 33. Bd4 {[%emt 0:05:06]} Rhf8 {[%emt 0:00:53]} 34. Rh2 {[%emt 0:00:56]} f6 {[%emt 0:00:19]} 35. Be3 {[%emt 0:04:45]} Kc6 {[%emt 0:00:26]} 36. h4 {[%emt 0:00:51]} Rh8 {[%emt 0:00:31]} 37. Bc1 {[%emt 0:00:52]} f5 {[%emt 0:00:44]} 38. Rg1 {[%emt 0:02:17]} Rh6 {[%emt 0:00:36]} 39. g5 {[%emt 0:07:46]} Rh5 {[%emt 0:00:10]} 40. Be3 {[%emt 0:02:18]} Rch8 {[%emt 0:00:40]} 41. Rgh1 {[%emt 0:30:33]} e5 {[%emt 0:22:16]} 42. fxe5 {[%emt 0:00:00]} Nxe5+ {[%emt 0:00:05]} 43. Kg3 {[%emt 0:00:00]} Re8 {[%emt 0:02:50]} 44. Re2 {[%emt 0:00:00]} Nc4 {[%emt 0:02:03]} 45. Rhe1 {[%emt 0:00:00]} Re4 {[%emt 0:00:45]} 46. Bf4 {[%emt 0:00:00]} Nxb2 {[%emt 0:00:31]} 47. Rxe4 {[%emt 0:00:00]} dxe4 {[%emt 0:00:28]} 48. Ra1 {[%emt 0:00:00]} Rh7 {[%emt 0:01:10]} 49. Be5 {[%emt 0:00:00]} Nd3 {[%emt 0:00:37]} 50. Bd4 {[%emt 0:00:00]} f4+ {[%emt 0:01:10]} 51. Kg4 {[%emt 0:00:00]} e3 {[%emt 0:00:51]} 52. Kf3 {[%emt 0:00:00]} Rxh4 {[%emt 0:00:59]} 53. a4 {[%emt 0:00:00]} Rh3+ {[%emt 0:00:44]} 54. Ke2 {[%emt 0:00:00]} Nc5 {[%emt 0:00:48]} 55. axb5+ {[%emt 0:00:00]} axb5 {[%emt 0:03:46]} 56. Rf1 {[%emt 0:03:29]} Rh2+ {[%emt 0:00:00]} 57. Kf3 {[%emt 0:00:29]} Nd3 {[%emt 0:00:00]} 58. Bxe3 {[%emt 0:01:41]} Rh3+ {[%emt 0:00:00]} 59. Ke4 {[%emt 0:00:04]} Rxe3+ {[%emt 0:00:00]} 60. Kd4 {[%emt 0:00:03]} Rg3 {[%emt 0:01:18]} 61. Ra1 {[%emt 0:00:42]} Nc5 {[%emt 0:00:00]} 62. Ke5 {[%emt 0:00:32]} Rxg5+ {[%emt 0:00:00]} 63. Kxf4 {[%emt 0:00:03]} Rf5+ {[%emt 0:00:00]} 64. Ke3 {[%emt 0:00:17]} Kd5 {[%emt 0:00:00]} 65. Rg1 {[%emt 0:00:18]} g5 {[%emt 0:00:00]} 66. Rb1 {[%emt 0:00:20]} Re5+ {[%emt 0:00:12]} 67. Kf3 {[%emt 0:00:06]} Kc6 {[%emt 0:00:35]} 68. Rb4 {[%emt 0:00:08]} Na6 {[%emt 0:00:26]} 69. Rd4 {[%emt 0:00:16]} Kc5 {[%emt 0:00:45]} 70. Rg4 {[%emt 0:00:28]} Nc7 {[%emt 0:00:12]} 0-1

[Event "44th Chess Olympiad Women 2022"]
[Site "Chennai"]
[Date "2022.08.02"]
[Round "5.15"]
[White "Atalik, Ekaterina"]
[Black "Efroimski, Marsel"]
[Result "1/2-1/2"]
[ECO "D02"]
[WhiteElo "2422"]
[BlackElo "2456"]
[Annotator "RC"]
[PlyCount "35"]
[EventDate "2022.07.29"]
[EventType "team-tourn"]
[EventCountry "IND"]
[SourceTitle "playchess.com"]
[Source "ChessBase"]
[SourceQuality "1"]
[WhiteTeam "Turkey"]
[BlackTeam "Israel"]
[WhiteTeamCountry "TUR"]
[BlackTeamCountry "ISR"]
[TimeControl "40/5400+30:1800+30"]

1. Nf3 {[%emt 0:00:04]} d5 {[%emt 0:00:03]} 2. g3 {[%emt 0:00:11]} Nc6 {[%emt 0:01:28]} 3. d4 {[%emt 0:00:20]} Bf5 {[%emt 0:00:04]} 4. Bg2 {[%emt 0:00:24]} Nb4 {[%emt 0:00:07]} 5. Na3 {[%emt 0:00:28]} e6 {[%emt 0:00:20]} 6. O-O {[%emt 0:00:48]} Be7 {[%emt 0:00:09]} 7. Ne5 {[%emt 0:00:48]} Nf6 {[%emt 0:00:19]} 8. c3 {[%emt 0:00:54]} Nc6 {[%emt 0:00:12]} 9. Qa4 {[%emt 0:06:48]} O-O {[%emt 0:00:07]} 10. Nxc6 {[%emt 0:01:07]} bxc6 {[%emt 0:00:04]} 11. Qxc6 {[%emt 0:01:14]} Rb8 {[%emt 0:00:04]} 12. Qa4 {[%emt 0:05:19]} c5 {[%emt 0:00:08]} 13. dxc5 {[%emt 0:06:41]} Bxc5 {[%emt 0:01:41]} 14. Nc2 {[%emt 0:04:09]} Bg4 {[%emt 0:07:57]} 15. Bf3 {[%emt 0:11:03]} Bh3 {[%emt 0:02:58]} 16. Bg2 {[%emt 0:08:39]} Bg4 {[%emt 0:00:07]} 17. Bf3 {[%emt 0:01:44]} Bh3 {[%emt 0:00:05]} 18. Bg2 {[%emt 0:06:44]} 1/2-1/2

[Event "44th Chess Olympiad Women 2022"]
[Site "Chennai"]
[Date "2022.08.02"]
[Round "5.15"]
[White "Belenkaya, Dina"]
[Black "Aydin, Gulenay"]
[Result "1-0"]
[ECO "B12"]
[WhiteElo "2256"]
[BlackElo "2100"]
[Annotator "RC"]
[PlyCount "127"]
[EventDate "2022.07.29"]
[EventType "team-tourn"]
[EventCountry "IND"]
[SourceTitle "playchess.com"]
[Source "ChessBase"]
[SourceQuality "1"]
[WhiteTeam "Israel"]
[BlackTeam "Turkey"]
[WhiteTeamCountry "ISR"]
[BlackTeamCountry "TUR"]
[TimeControl "40/5400+30:1800+30"]

1. e4 {[%emt 0:00:02]} c6 {[%emt 0:00:06]} 2. d4 {[%emt 0:00:05]} d5 {[%emt 0:00:03]} 3. e5 {[%emt 0:00:19]} Bf5 {[%emt 0:00:47]} 4. Bd3 {[%emt 0:00:11]} Bxd3 {[%emt 0:01:25]} 5. Qxd3 {[%emt 0:00:03]} e6 {[%emt 0:00:10]} 6. Ne2 {[%emt 0:00:32]} Nd7 {[%emt 0:05:02]} 7. O-O {[%emt 0:03:49]} h5 {[%emt 0:16:14]} 8. Nd2 {[%emt 0:01:57]} Nh6 {[%emt 0:04:36]} 9. Qh3 {[%emt 0:11:05]} g6 {[%emt 0:08:19]} 10. b3 {[%emt 0:09:55]} Be7 {[%emt 0:03:29]} 11. c4 {[%emt 0:04:32]} Kf8 {[%emt 0:10:48]} 12. Rd1 {[%emt 0:05:38]} Kg7 {[%emt 0:04:39]} 13. Nf1 {[%emt 0:01:37]} a5 {[%emt 0:02:24]} 14. a4 {[%emt 0:01:40]} Nb8 {[%emt 0:10:04]} 15. Ne3 {[%emt 0:01:57]} Na6 {[%emt 0:00:49]} 16. Ra2 {[%emt 0:04:15]} Nb4 {[%emt 0:00:28]} 17. Rad2 {[%emt 0:04:31]} Qb6 {[%emt 0:04:10]} 18. Rf1 {[%emt 0:03:48]} Rad8 {[%emt 0:02:24]} 19. Bb2 {[%emt 0:02:01]} Qc7 {[%emt 0:08:47]} 20. Kh1 {[%emt 0:03:07]} Qd7 {[%emt 0:01:41]} 21. Qg3 {[%emt 0:02:35]} Kh7 {[%emt 0:02:36]} 22. Rg1 {[%emt 0:01:42]} Rdg8 {[%emt 0:04:53]} 23. Qf3 {[%emt 0:06:26]} Kg7 {[%emt 0:00:47]} 24. Bc3 {[%emt 0:01:14]} b6 {[%emt 0:01:37]} 25. Ng3 {[%emt 0:03:56]} Kf8 {[%emt 0:00:42]} 26. Qd1 {[%emt 0:00:50]} Kg7 {[%emt 0:00:11]} 27. Ne2 {[%emt 0:03:52]} Rc8 {[%emt 0:00:05]} 28. Nf4 {[%emt 0:00:37]} Rcg8 {[%emt 0:00:37]} 29. Qf3 {[%emt 0:04:38]} Kf8 {[%emt 0:00:24]} 30. Rc1 {[%emt 0:02:20]} Kg7 {[%emt 0:00:05]} 31. Qd1 {[%emt 0:01:44]} Rc8 {[%emt 0:00:21]} 32. Re2 {[%emt 0:00:55]} Rcg8 {[%emt 0:01:32]} 33. Kg1 {[%emt 0:04:53]} Na6 {[%emt 0:02:09]} 34. Rec2 {[%emt 0:01:12]} Rc8 {[%emt 0:00:54]} 35. Nd3 {[%emt 0:01:06]} Rb8 {[%emt 0:00:25]} 36. Bb2 {[%emt 0:02:17]} Rhc8 {[%emt 0:00:38]} 37. Kh1 {[%emt 0:03:42]} Rh8 {[%emt 0:01:03]} 38. Kg1 {[%emt 0:00:58]} Rhc8 {[%emt 0:00:03]} 39. Qe2 {[%emt 0:00:48]} Qb7 {[%emt 0:01:25]} 40. Rf1 {[%emt 0:01:46]} Qd7 {[%emt 0:01:06]} 41. Rcc1 {[%emt 0:31:32]} Rh8 {[%emt 0:32:21]} 42. Kh1 {[%emt 0:00:49]} Rh7 {[%emt 0:00:00]} 43. h3 {[%emt 0:00:00]} Rhh8 {[%emt 0:00:00]} 44. g3 {[%emt 0:00:00]} Nb4 {[%emt 0:00:00]} 45. Nxb4 {[%emt 0:00:00]} Bxb4 {[%emt 0:00:00]} 46. Rc2 {[%emt 0:00:00]} Be7 {[%emt 0:00:00]} 47. Rfc1 {[%emt 0:00:00]} Rhc8 {[%emt 0:00:00]} 48. Kg2 {[%emt 0:00:00]} Nf5 {[%emt 0:00:00]} 49. Nxf5+ {[%emt 0:00:00]} exf5 {[%emt 0:00:00]} 50. h4 {[%emt 0:00:00]} Qe6 {[%emt 0:00:00]} 51. Qf3 {[%emt 0:00:00]} Qd7 {[%emt 0:01:00]} 52. Bc3 {[%emt 0:00:00]} b5 {[%emt 0:03:23]} 53. axb5 {[%emt 0:00:00]} dxc4 {[%emt 0:00:05]} 54. bxc6 {[%emt 0:00:00]} Qxc6 {[%emt 0:00:03]} 55. d5 {[%emt 0:00:00]} Qb7 {[%emt 0:01:25]} 56. bxc4 {[%emt 0:00:00]} a4 {[%emt 0:00:36]} 57. d6 {[%emt 0:00:00]} Bd8 {[%emt 0:00:43]} 58. e6+ {[%emt 0:00:14]} Bf6 {[%emt 0:00:02]} 59. Qxb7 {[%emt 0:00:40]} Rxb7 {[%emt 0:00:03]} 60. e7 {[%emt 0:00:21]} Rd7 {[%emt 0:00:45]} 61. c5 {[%emt 0:00:18]} Bxc3 {[%emt 0:01:05]} 62. Rxc3 {[%emt 0:00:02]} f6 {[%emt 0:00:12]} 63. Rd1 {[%emt 0:00:24]} Kf7 {[%emt 0:00:24]} 64. c6 {[%emt 0:00:13]} 1-0

[Event "44th Chess Olympiad Women 2022"]
[Site "Chennai"]
[Date "2022.08.02"]
[Round "5.15"]
[White "Okuyaz, Duru"]
[Black "Lahav, Michal"]
[Result "0-1"]
[ECO "B50"]
[WhiteElo "2090"]
[BlackElo "2191"]
[Annotator "NA RC"]
[PlyCount "84"]
[EventDate "2022.07.29"]
[EventType "team-tourn"]
[EventCountry "IND"]
[SourceTitle "playchess.com"]
[Source "ChessBase"]
[SourceQuality "1"]
[WhiteTeam "Turkey"]
[BlackTeam "Israel"]
[WhiteTeamCountry "TUR"]
[BlackTeamCountry "ISR"]
[TimeControl "40/5400+30:1800+30"]

1. e4 {[%emt 0:00:02]} c5 {[%emt 0:00:14]} 2. Nf3 {[%emt 0:00:05]} g6 {[%emt 0:00:05]} 3. g3 {[%emt 0:00:36]} Bg7 {[%emt 0:00:10]} 4. Bg2 {[%emt 0:00:05]} Nc6 {[%emt 0:01:37]} 5. O-O {[%emt 0:01:21]} Nf6 {[%emt 0:09:02]} 6. Re1 {[%emt 0:00:43]} O-O {[%emt 0:05:07]} 7. c3 {[%emt 0:00:40]} d6 {[%emt 0:11:39]} 8. d4 {[%emt 0:01:09]} cxd4 {[%emt 0:00:08]} 9. cxd4 {[%emt 0:00:50]} a6 {[%emt 0:00:09]} 10. Nc3 {[%emt 0:01:23]} Bd7 {[%emt 0:04:25]} 11. b3 {[%emt 0:11:03]} Rc8 {[%emt 0:02:15]} 12. Bb2 {[%emt 0:00:58]} Qa5 {[%emt 0:04:16]} 13. e5 {[%emt 0:13:00]} Ne8 {[%emt 0:03:37]} 14. h3 {[%emt 0:08:04]} Rd8 {[%emt 0:30:13]} 15. a3 {[%emt 0:28:43]} dxe5 {[%emt 0:00:05]} 16. b4 {[%emt 0:00:24]} Qc7 {[%emt 0:00:04]} 17. d5 {[%emt 0:02:01]} Bc8 {[%emt 0:05:48]} 18. Qb3 {[%emt 0:06:25]} Nd4 {[%emt 0:05:13]} 19. Nxd4 {[%emt 0:00:05]} exd4 {[%emt 0:00:01]} 20. Ne2 {[%emt 0:00:26]} e5 {[%emt 0:01:03]} 21. f4 {[%emt 0:04:05]} exf4 {[%emt 0:01:37]} 22. Nxf4 {[%emt 0:02:06]} Nd6 {[%emt 0:03:19]} 23. Ne2 {[%emt 0:06:42]} Qb6 {[%emt 0:02:11]} 24. Kh1 {[%emt 0:02:19]} Rfe8 {[%emt 0:00:03]} 25. Nf4 {[%emt 0:01:56]} Nf5 {[%emt 0:02:49]} 26. Qd3 {[%emt 0:01:37]} Bd7 {[%emt 0:03:30]} 27. g4 {[%emt 0:02:32]} Bb5 {[%emt 0:00:03]} 28. Qd2 {[%emt 0:01:40]} Ne3 {[%emt 0:00:46]} 29. Rac1 {[%emt 0:01:27]} Be5 {[%emt 0:03:30]} 30. Nd3 {[%emt 0:00:49]} Bxd3 {[%emt 0:00:49]} 31. Qxd3 {[%emt 0:00:06]} Nxg2 {[%emt 0:00:04]} 32. Kxg2 {[%emt 0:00:15]} Rxd5 {[%emt 0:00:02]} 33. Qf3 {[%emt 0:00:42]} Red8 {[%emt 0:01:03]} 34. Rf1 {[%emt 0:00:22]} R5d7 {[%emt 0:00:16]} 35. Rc5 {[%emt 0:00:50]} Bg7 {[%emt 0:00:38]} 36. Qd3 {[%emt 0:01:27]} Re7 {[%emt 0:01:22]} 37. Bc1 {[%emt 0:00:10]} Rde8 {[%emt 0:00:59]} 38. Qf3 {[%emt 0:00:19]} Rd7 {[%emt 0:00:40]} 39. Rf2 {[%emt 0:01:15]} Qe6 {[%emt 0:00:21]} 40. Bd2 {[%emt 0:00:33]} h6 {[%emt 0:00:35]} 41. b5 {[%emt 0:03:30]} Qe7 {[%emt 0:05:21]} 42. Bb4 {[%emt 0:01:16]} a5 {[%emt 0:00:49]} 0-1

[Event "44th Chess Olympiad Women 2022"]
[Site "Chennai"]
[Date "2022.08.02"]
[Round "5.15"]
[White "Levitan, Ronit"]
[Black "Onur, Cigdem"]
[Result "1-0"]
[ECO "B13"]
[WhiteElo "2084"]
[BlackElo "2000"]
[Annotator "NA RC"]
[PlyCount "65"]
[EventDate "2022.07.29"]
[EventType "team-tourn"]
[EventCountry "IND"]
[SourceTitle "playchess.com"]
[Source "ChessBase"]
[SourceQuality "1"]
[WhiteTeam "Israel"]
[BlackTeam "Turkey"]
[WhiteTeamCountry "ISR"]
[BlackTeamCountry "TUR"]
[TimeControl "40/5400+30:1800+30"]

1. e4 {[%emt 0:00:34]} c6 {[%emt 0:00:03]} 2. d4 {[%emt 0:00:13]} d5 {[%emt 0:00:03]} 3. exd5 {[%emt 0:00:05]} cxd5 {[%emt 0:00:03]} 4. c4 {[%emt 0:00:08]} Nf6 {[%emt 0:00:02]} 5. Nc3 {[%emt 0:00:10]} Nc6 {[%emt 0:00:05]} 6. Nf3 {[%emt 0:00:14]} Bg4 {[%emt 0:00:06]} 7. cxd5 {[%emt 0:00:07]} Nxd5 {[%emt 0:00:08]} 8. Qb3 {[%emt 0:00:09]} Bxf3 {[%emt 0:00:12]} 9. gxf3 {[%emt 0:00:09]} e6 {[%emt 0:00:24]} 10. Qxb7 {[%emt 0:01:03]} Nxd4 {[%emt 0:03:07]} 11. Bb5+ {[%emt 0:00:14]} Nxb5 {[%emt 0:00:07]} 12. Qc6+ {[%emt 0:00:05]} Ke7 {[%emt 0:00:07]} 13. Qc5+ {[%emt 0:00:55]} Nd6 {[%emt 0:11:02]} 14. Nxd5+ {[%emt 0:00:08]} exd5 {[%emt 0:00:04]} 15. O-O {[%emt 0:00:10]} Kd7 {[%emt 0:03:02]} 16. Qxd5 {[%emt 0:00:10]} Be7 {[%emt 0:08:54]} 17. Rd1 {[%emt 0:09:47]} Qb6 {[%emt 0:23:23]} 18. Bf4 {[%emt 0:02:19]} Rad8 {[%emt 0:10:04]} 19. Re1 {[%emt 0:46:41]} Rhe8 {[%emt 0:08:46]} 20. Rad1 {[%emt 0:02:54]} Kc8 {[%emt 0:11:58]} 21. Rd3 {[%emt 0:11:13]} Bh4 {[%emt 0:16:39]} 22. Rc1+ {[%emt 0:01:35]} Kd7 {[%emt 0:01:22]} 23. Qxf7+ {[%emt 0:01:09]} Re7 {[%emt 0:00:39]} 24. Rxd6+ {[%emt 0:01:45]} Qxd6 {[%emt 0:00:11]} 25. Qf5+ {[%emt 0:00:04]} Re6 {[%emt 0:01:52]} 26. Bxd6 {[%emt 0:00:14]} Kxd6 {[%emt 0:00:12]} 27. Rd1+ {[%emt 0:00:50]} Ke7 {[%emt 0:00:50]} 28. Rxd8 {[%emt 0:00:09]} Rg6+ {[%emt 0:00:26]} 29. Kf1 {[%emt 0:00:45]} Kxd8 {[%emt 0:00:11]} 30. Qa5+ {[%emt 0:01:27]} Kc8 {[%emt 0:00:45]} 31. Qc5+ {[%emt 0:00:24]} Kd7 {[%emt 0:00:39]} 32. Qd4+ {[%emt 0:00:09]} Kc6 {[%emt 0:00:23]} 33. Qxh4 {[%emt 0:00:06]} 1-0

[Event "44th Chess Olympiad Women 2022"]
[Site "Chennai"]
[Date "2022.08.02"]
[Round "5.16"]
[White "Toma, Katarzyna"]
[Black "Zaksaite, Salomeja"]
[Result "1/2-1/2"]
[ECO "B33"]
[WhiteElo "2303"]
[BlackElo "2212"]
[Annotator "RC"]
[PlyCount "87"]
[EventDate "2022.07.29"]
[EventType "team-tourn"]
[EventCountry "IND"]
[SourceTitle "playchess.com"]
[Source "ChessBase"]
[SourceQuality "1"]
[WhiteTeam "England"]
[BlackTeam "Lithuania"]
[WhiteTeamCountry "ENG"]
[BlackTeamCountry "LTU"]
[TimeControl "40/5400+30:1800+30"]

1. e4 {[%emt 0:00:03]} c5 {[%emt 0:00:12]} 2. Nf3 {[%emt 0:00:07]} Nc6 {[%emt 0:00:23]} 3. d4 {[%emt 0:00:34]} cxd4 {[%emt 0:00:52]} 4. Nxd4 {[%emt 0:00:06]} Nf6 {[%emt 0:00:03]} 5. Nc3 {[%emt 0:00:09]} e5 {[%emt 0:00:03]} 6. Ndb5 {[%emt 0:00:11]} d6 {[%emt 0:00:03]} 7. Bg5 {[%emt 0:00:14]} a6 {[%emt 0:00:05]} 8. Na3 {[%emt 0:00:06]} b5 {[%emt 0:00:03]} 9. Nd5 {[%emt 0:00:20]} Be7 {[%emt 0:00:33]} 10. Bxf6 {[%emt 0:00:33]} Bxf6 {[%emt 0:00:04]} 11. c4 {[%emt 0:00:11]} b4 {[%emt 0:00:44]} 12. Nc2 {[%emt 0:00:11]} O-O {[%emt 0:00:37]} 13. g3 {[%emt 0:00:35]} a5 {[%emt 0:00:17]} 14. Bg2 {[%emt 0:00:50]} Rb8 {[%emt 0:08:49]} 15. b3 {[%emt 0:10:15]} g6 {[%emt 0:07:13]} 16. Nxf6+ {[%emt 0:07:25]} Qxf6 {[%emt 0:00:04]} 17. O-O {[%emt 0:00:06]} Bb7 {[%emt 0:06:47]} 18. Qd3 {[%emt 0:00:54]} Qe7 {[%emt 0:02:13]} 19. Rad1 {[%emt 0:01:05]} Rfd8 {[%emt 0:00:19]} 20. f4 {[%emt 0:00:58]} f6 {[%emt 0:00:34]} 21. Kh1 {[%emt 0:25:34]} Kg7 {[%emt 0:00:24]} 22. Rde1 {[%emt 0:04:37]} Rf8 {[%emt 0:01:34]} 23. Qd2 {[%emt 0:01:11]} Ba8 {[%emt 0:05:29]} 24. h4 {[%emt 0:08:55]} Rbd8 {[%emt 0:12:22]} 25. Ne3 {[%emt 0:11:11]} Nd4 {[%emt 0:01:17]} 26. f5 {[%emt 0:06:05]} Kh8 {[%emt 0:04:30]} 27. Kh2 {[%emt 0:07:45]} Bb7 {[%emt 0:03:04]} 28. Rf2 {[%emt 0:05:25]} Qg7 {[%emt 0:05:14]} 29. Ref1 {[%emt 0:00:39]} g5 {[%emt 0:08:15]} 30. hxg5 {[%emt 0:04:44]} Qxg5 {[%emt 0:00:10]} 31. Nc2 {[%emt 0:01:09]} Qh5+ {[%emt 0:05:22]} 32. Kg1 {[%emt 0:00:06]} Nxc2 {[%emt 0:02:49]} 33. Qxc2 {[%emt 0:00:04]} Qg4 {[%emt 0:03:24]} 34. Qd3 {[%emt 0:01:44]} Rg8 {[%emt 0:07:04]} 35. Rd2 {[%emt 0:00:07]} Qxg3 {[%emt 0:01:09]} 36. Qxg3 {[%emt 0:00:05]} Rxg3 {[%emt 0:00:04]} 37. Kf2 {[%emt 0:00:36]} Rdg8 {[%emt 0:13:03]} 38. Bf3 {[%emt 0:00:31]} Rh3 {[%emt 0:00:07]} 39. Rh1 {[%emt 0:03:19]} Rxh1 {[%emt 0:01:35]} 40. Bxh1 {[%emt 0:00:01]} Rf8 {[%emt 0:02:57]} 41. Rxd6 {[%emt 0:30:24]} Rf7 {[%emt 0:02:30]} 42. Bf3 {[%emt 0:00:00]} Kg7 {[%emt 0:00:15]} 43. Ke3 {[%emt 0:00:00]} Rc7 {[%emt 0:08:09]} 44. Rb6 {[%emt 0:00:00]} 1/2-1/2